bitfinex/quotes_ETHUSD_20250611
["timestamp","ask_amount","ask_price","bid_price","bid_amount"]
[1749681319350,7.25311023,2762.4,2762.3,1.287]
[1749681320665,7.07231023,2762.4,2762.3,1.287]
[1749681322541,0.1808,2762.3,2762.1,1.277]
[1749681322761,0.7828,2762.3,2762.1,1.277]
[1749681322943,4.216,2762.2,2761.1,6.256]
[1749681323143,8.03591023,2761.6,2761.2,1.277]
[1749681323673,8.03591023,2761.6,2761.2,5.493]
[1749681325035,8.03591023,2761.6,2761.2,1.277]
[1749681325242,8.03591023,2761.6,2761.2,5.493]
[1749681325442,8.03591023,2761.6,2761.1,6.4368]
[1749681325746,0.1808,2761.2,2761.1,7.533]
[1749681326169,0.9505,2761.2,2761.1,7.533]
[1749681326372,5.1655,2761.2,2761.1,1.277]
[1749681326545,15.1655,2761.2,2761.1,1.277]
[1749681329265,15.1655,2761.2,2760.3,4.215]
[1749681329266,10.7819,2761.1,2760.5,1.277]
[1749681329478,7.07231023,2760.6,2760.5,1.277]
[1749681330289,0.7819,2760.9,2760.5,1.277]
[1749681330290,7.07231023,2760.7,2760.5,1.277]
[1749681330505,7.07231023,2760.7,2760.3,1.277]
[1749681330506,0.1808,2760.5,2760.3,1.277]
[1749681330671,7.85421023,2760.4,2760.3,1.277]
[1749681331373,0.8057,2760.7,2760.3,1.277]
[1749681331685,0.1808,2760.5,2760.3,5.49]
[1749681332202,0.1808,2760.5,2760.1,0.8212]
[1749681332762,0.1808,2760.5,2760.2,5.491]
[1749681333901,0.1808,2760.5,2760.3,0.63122]
[1749681334198,0.8045,2761.3,2760.3,10.81202]
[1749681334377,0.1808,2761.0,2760.3,10.81202]
[1749681334559,0.1808,2761.0,2760.5,0.1808]
[1749681334761,7.07231023,2761.0,2760.6,5.491]
[1749681335091,7.07231023,2761.0,2760.1,10.8212]
[1749681335296,7.07231023,2761.0,2760.7,1.278]
[1749681337568,5.0175,2761.3,2760.7,1.278]
[1749681337569,12.08981023,2761.3,2760.7,1.278]
[1749681337770,0.1808,2760.9,2760.7,1.278]
[1749681338719,0.1808,2760.9,2760.8,1.278]
[1749681342113,0.1808,2760.9,2760.4,0.1808]
[1749681342275,7.07231023,2761.1,2760.5,1.278]
[1749681342479,7.07231023,2760.8,2760.5,1.278]
[1749681342679,0.8045,2761.3,2760.5,1.278]
[1749681342680,5.0135,2761.3,2760.5,1.278]
[1749681342910,0.1808,2760.6,2760.5,1.278]
[1749681346176,0.8045,2761.3,2760.5,1.4588]
[1749681346177,0.1808,2761.0,2760.5,1.4588]
[1749681346383,0.1808,2761.0,2760.5,2.81997387]
[1749681346722,0.1808,2760.8,2760.5,2.63917387]
[1749681347111,0.1808,2761.0,2760.5,2.81997387]
[1749681347388,0.1808,2761.0,2760.5,4.97291256]
[1749681348435,0.1808,2761.0,2760.6,2.15293869]
[1749681348638,0.1808,2761.0,2760.7,4.70429126]
[1749681349333,0.1808,2761.0,2760.6,2.15293869]
[1749681349334,0.1808,2761.0,2760.8,5.476]
[1749681349626,7.25311023,2761.0,2760.6,2.15293869]
[1749681349830,7.25311023,2761.0,2760.7,1.269]
[1749681350131,7.25311023,2761.0,2760.5,2.33373869]
[1749681350293,7.25311023,2761.0,2760.8,1.269]
[1749681350488,7.25311023,2761.0,2760.5,4.3868]
[1749681350489,7.07231023,2761.0,2760.9,1.269]
[1749681351017,0.969,2760.9,2760.7,1.269]
[1749681351220,9.69622157,2760.8,2760.7,1.269]
[1749681352207,9.69622157,2761.1,2760.7,1.269]
[1749681352413,0.1808,2761.0,2760.7,3.42193869]
[1749681352617,0.1808,2761.0,2760.8,2.15293869]
[1749681353519,0.1808,2761.0,2760.9,2.15293869]
[1749681353708,0.7882,2761.5,2760.9,2.15293869]
[1749681353709,10.48442157,2761.8,2760.9,0.83829387]
[1749681353904,0.1808,2761.4,2761.3,2.16479576]
[1749681354245,0.1808,2761.4,2761.3,3.43379576]
[1749681354743,0.1808,2761.4,2761.3,3.43433171]
[1749681354944,0.1808,2761.4,2761.3,1.269]
[1749681356428,0.1808,2761.4,2761.3,2.10426297]
[1749681357246,0.09026622,2761.4,2761.3,2.10426297]
[1749681357611,0.8044,2762.1,2761.3,2.10426297]
[1749681357810,0.1808,2761.8,2761.7,2.16388247]
[1749681358713,7.22366516,2761.8,2761.7,2.16388247]
[1749681358909,7.22366516,2761.8,2761.3,3.06042973]
[1749681358910,3.62128256,2761.5,2761.0,2.16388247]
[1749681359149,0.9886,2761.0,2760.9,3.43288247]
[1749681359321,0.9886,2761.0,2760.9,1.269]
[1749681359954,0.9886,2761.0,2760.7,2.16388247]
[1749681360154,0.9886,2761.0,2760.8,1.269]
[1749681360155,0.8078,2761.0,2760.8,1.269]
[1749681360529,0.8078,2761.0,2760.6,2.16388247]
[1749681360530,0.1808,2760.8,2760.6,2.16388247]
[1749681360738,7.04286516,2760.8,2760.5,2.16388247]
[1749681360939,7.04286516,2760.8,2760.7,1.269]
[1749681361252,7.04286516,2760.8,2760.5,2.16388247]
[1749681361427,7.04286516,2760.8,2760.7,1.269]
[1749681362447,3.6213877,2761.4,2760.7,1.269]
[1749681362448,7.04286516,2761.6,2760.7,2.16388247]
[1749681362617,7.04286516,2761.3,2760.7,2.16414008]
[1749681362811,7.04286516,2761.3,2760.3,2.87962973]
[1749681362812,7.04286516,2761.0,2760.8,2.16414008]
[1749681363041,7.04286516,2761.0,2760.9,1.269]
[1749681363531,7.04286516,2761.0,2760.6,2.16414008]
[1749681363532,0.1808,2760.9,2760.8,1.269]
[1749681363732,7.04286516,2761.0,2760.8,1.269]
[1749681363947,0.7616,2761.2,2760.8,1.269]
[1749681364158,7.04286516,2761.0,2760.8,1.269]
[1749681364359,7.04286516,2761.0,2760.7,1.269]
[1749681364360,0.1808,2760.8,2760.7,1.269]
[1749681364527,7.04286516,2761.0,2760.7,1.269]
[1749681364932,0.7616,2761.2,2760.7,1.269]
[1749681365730,7.04286516,2761.0,2760.7,1.269]
[1749681366239,4.9606,2761.2,2760.7,1.269]
[1749681367763,4.9606,2761.2,2760.7,3.43314008]
[1749681368324,4.9606,2761.2,2760.7,2.16414008]
[1749681368524,7.04286516,2761.0,2760.8,1.269]
[1749681369168,5.31813971,2761.2,2760.8,1.269]
[1749681369350,7.04286516,2761.1,2760.8,1.269]
[1749681370351,0.7616,2761.2,2760.8,1.269]
[1749681370579,0.7835,2761.5,2761.0,2.16385177]
[1749681370738,0.1808,2761.3,2761.1,2.16385177]
[1749681370937,0.7695,2761.9,2761.2,0.21638518]
[1749681371143,7.04286516,2762.3,2761.4,2.97806545]
[1749681371144,0.1808,2761.6,2761.4,2.97806545]
[1749681371347,0.1808,2761.8,2761.5,2.16356545]
[1749681371647,0.1808,2761.8,2761.4,0.8145]
[1749681371648,0.1808,2761.8,2761.6,2.16356545]
[1749681371876,0.1808,2761.8,2761.4,5.0105]
[1749681371877,0.1808,2761.8,2761.7,1.48535655]
[1749681372442,0.1808,2761.8,2761.7,3.6468564]
[1749681372771,0.1808,2761.8,2761.7,1.48535655]
[1749681372972,0.1808,2761.8,2761.7,3.64685956]
[1749681373158,0.7695,2762.5,2761.7,3.64685956]
[1749681373361,0.1808,2762.1,2761.7,3.64685956]
[1749681373534,0.1808,2761.8,2761.7,3.64685956]
[1749681373735,0.1808,2761.8,2761.7,2.16150301]
[1749681373977,0.1808,2761.8,2761.3,2.87962973]
[1749681373978,1.0107,2761.8,2761.5,3.43050301]
[1749681374139,7.04286516,2761.7,2761.5,1.269]
[1749681375240,0.1808,2761.5,2761.1,1.269]
[1749681375438,7.04286516,2761.3,2761.1,1.269]
[1749681375645,0.1808,2761.1,2761.0,1.269]
[1749681375952,7.04286516,2761.3,2761.0,1.269]
[1749681376690,0.7975,2761.4,2761.0,1.6120503]
[1749681376984,0.1808,2761.3,2761.1,2.16150301]
[1749681377275,0.1808,2761.8,2761.3,0.1808]
[1749681377497,0.1808,2761.8,2761.5,0.817]
[1749681377695,0.1808,2761.8,2761.6,2.16077213]
[1749681378363,0.1808,2761.8,2761.6,6.35377213]
[1749681380059,0.1808,2761.8,2761.6,2.16077213]
[1749681380262,0.1808,2761.8,2761.7,1.26]
[1749681381506,0.1808,2761.8,2761.7,1.68377721]
[1749681382182,0.1808,2761.8,2761.7,1.26]
[1749681383184,0.9517,2761.8,2761.4,2.16077213]
[1749681383383,0.7709,2761.8,2761.4,1.26]
[1749681384009,0.1808,2761.4,2761.3,1.26]
[1749681384890,0.1808,2761.4,2761.3,7.60977213]
[1749681385094,0.1808,2761.4,2761.3,8.44657934]
[1749681385614,0.7709,2762.1,2761.3,8.44657934]
[1749681385799,0.1808,2761.6,2761.3,8.44657934]
[1749681386112,0.1808,2761.8,2761.3,8.62737934]
[1749681386920,0.1808,2761.8,2761.4,2.16077213]
[1749681387135,0.1808,2761.8,2761.5,3.02351006]
[1749681387271,0.1808,2761.8,2761.5,0.86273793]
[1749681387476,0.1808,2761.8,2761.4,2.16077213]
[1749681387719,0.1808,2761.5,2761.3,2.16077213]
[1749681388018,0.1808,2761.5,2761.4,1.26]
[1749681388718,0.1808,2761.5,2761.0,2.16077213]
[1749681388929,7.04286516,2761.6,2761.4,1.26]
[1749681389219,7.04286516,2761.3,2761.0,1.26]
[1749681390134,0.7573,2761.5,2761.0,1.26]
[1749681390306,0.1808,2761.2,2761.0,1.26]
[1749681390821,0.7573,2761.5,2761.0,1.26]
[1749681390822,7.80016516,2761.5,2761.0,1.26]
[1749681391977,0.7573,2761.5,2761.0,1.26]
[1749681392180,0.1808,2761.2,2761.0,1.26]
[1749681392549,0.1808,2761.2,2761.1,2.95877213]
[1749681392739,0.8024,2762.2,2761.1,10.798]
[1749681393016,0.1808,2761.4,2761.3,2.16024331]
[1749681393216,0.1808,2761.4,2761.3,1.29582433]
[1749681393804,0.1808,2761.4,2761.3,2.16061063]
[1749681394121,0.1808,2761.4,2761.3,1.26]
[1749681394309,0.1808,2761.4,2760.9,2.16061063]
[1749681394518,7.04286516,2761.3,2761.0,1.26]
[1749681395133,0.8024,2761.5,2761.0,1.26]
[1749681397015,0.8024,2761.5,2760.8,2.16061063]
[1749681397016,0.1808,2761.0,2760.8,2.16061063]
[1749681397325,7.84526516,2761.5,2760.9,1.26]
[1749681397835,0.1808,2760.9,2760.8,3.42061063]
[1749681398719,0.1808,2760.9,2760.8,1.26]
[1749681398886,0.1808,2760.9,2760.8,2.16061063]
[1749681399215,0.1808,2760.9,2760.8,1.26]
[1749681400199,8.05086516,2760.9,2760.2,2.16061063]
[1749681400525,0.1808,2760.2,2760.1,1.26]
[1749681402005,0.1808,2760.2,2759.8,2.16061063]
[1749681402204,8.2240846,2760.7,2760.1,1.26]
[1749681403223,0.8272,2760.7,2760.1,1.26]
[1749681404103,7.87006516,2760.7,2760.1,1.26]
[1749681404592,0.8272,2760.7,2760.1,1.26]
[1749681405291,0.1808,2760.3,2760.1,1.26]
[1749681405626,0.1808,2760.3,2760.2,4.18]
[1749681405793,10.8101,2761.0,2760.2,4.18]
[1749681405993,0.1808,2760.6,2760.2,4.18]
[1749681406225,0.1808,2760.6,2760.3,0.77814106]
[1749681406791,9.69392289,2760.8,2760.1,2.16061063]
[1749681407005,9.69392289,2760.8,2760.2,1.26]
[1749681407296,7.05007896,2760.8,2760.3,1.26]
[1749681408127,0.1808,2760.3,2760.2,1.26]
[1749681408442,0.7666,2760.7,2760.2,1.26]
[1749681409333,0.7666,2760.7,2760.0,1.252]
[1749681409334,0.1808,2760.2,2760.0,1.252]
[1749681409511,7.05007896,2760.5,2760.0,1.252]
[1749681412333,7.22768549,2760.5,2760.0,1.252]
[1749681412540,7.05007896,2760.5,2760.0,1.252]
[1749681413037,4.178,2760.4,2760.0,1.252]
[1749681414104,0.8275,2760.1,2759.7,6.252]
[1749681414349,7.05007896,2759.8,2759.7,6.252]
[1749681414644,7.05007896,2759.8,2759.4,1.252]
[1749681414645,4.37645889,2759.7,2759.4,1.252]
[1749681414853,10.67356924,2759.8,2758.7,0.8205]
[1749681414854,10.7528,2759.4,2758.7,1.252]
[1749681415016,4.177,2759.6,2758.1,2.98111063]
[1749681415017,10.7528,2758.9,2758.1,2.98111063]
[1749681415253,7.05007896,2758.6,2758.0,1.252]
[1749681415565,7.05007896,2758.2,2758.0,1.252]
[1749681415732,11.22707896,2758.2,2758.0,1.252]
[1749681417050,11.22707896,2758.2,2757.3,1.252]
[1749681417051,11.58200163,2758.2,2757.3,1.252]
[1749681417254,7.05007896,2757.7,2757.3,1.252]
[1749681417473,11.22607896,2757.7,2757.3,1.252]
[1749681418336,4.176,2757.7,2757.3,1.252]
[1749681418886,7.05007896,2758.0,2757.3,1.252]
[1749681419050,4.177,2758.0,2757.3,1.252]
[1749681419876,10.8071,2758.5,2757.3,1.252]
[1749681419877,0.8071,2758.5,2757.4,0.8319]
[1749681420048,4.9831,2758.5,2757.5,0.20839]
[1749681420250,14.176,2758.5,2757.5,0.20839]
[1749681420657,4.176,2758.8,2757.6,0.807]
[1749681420843,4.176,2758.8,2757.7,5.428]
[1749681421044,7.87637896,2759.2,2757.8,10.0]
[1749681421244,11.22607896,2758.9,2757.9,1.5428]
[1749681421440,11.22607896,2758.9,2758.0,1.252]
[1749681423496,7.05007896,2758.6,2758.0,1.252]
[1749681423657,0.8263,2759.2,2758.1,0.7567]
[1749681423856,4.4438622,2760.6,2758.0,1.252]
[1749681423857,0.8101,2759.6,2758.3,0.7567]
[1749681424073,1.1716741,2759.9,2758.4,0.7872]
[1749681424353,0.1808,2758.9,2758.4,0.968]
[1749681425058,13.62312856,2760.1,2758.4,0.968]
[1749681425059,7.05007896,2760.3,2758.6,1.3872]
[1749681425294,7.05007896,2760.0,2758.7,0.7872]
[1749681425498,0.1808,2759.2,2758.7,0.968]
[1749681425858,0.1808,2759.2,2758.9,0.7872]
[1749681426052,21.22407896,2760.3,2759.1,0.1808]
[1749681426053,0.1808,2759.6,2759.1,0.1808]
[1749681426257,7.05007896,2759.7,2759.0,0.7872]
[1749681426497,0.1808,2759.1,2759.0,0.7872]
[1749681426684,0.1808,2759.1,2759.0,2.0392]
[1749681428084,7.82207896,2760.3,2759.0,2.0392]
[1749681428261,0.1808,2759.5,2759.0,2.22]
[1749681429794,10.0,2759.9,2759.0,2.0392]
[1749681429979,0.1808,2759.3,2759.0,2.0392]
[1749681431175,0.1808,2759.6,2759.2,10.0]
[1749681431370,0.1808,2759.7,2759.3,0.7661]
[1749681432794,7.05007896,2760.0,2759.4,1.252]
[1749681434486,0.1808,2759.4,2759.3,0.7661]
[1749681434795,0.1808,2759.4,2759.3,2.51171]
[1749681435804,7.05007896,2760.3,2759.3,2.51171]
[1749681435964,0.1808,2759.6,2759.3,2.0181]
[1749681442028,0.1808,2759.6,2759.3,0.7661]
[1749681442186,7.05007896,2760.1,2759.4,1.243]
[1749681442392,4.9589,2760.5,2759.4,1.243]
[1749681442393,7.05007896,2760.4,2759.4,1.243]
[1749681442603,0.1808,2759.6,2759.4,1.243]
[1749681442805,0.1808,2759.6,2759.5,0.20091]
[1749681443107,7.05007896,2760.4,2759.5,0.20091]
[1749681443108,0.1808,2759.8,2759.5,0.20091]
[1749681445736,0.1808,2759.8,2759.6,1.243]
[1749681446039,0.1808,2759.8,2759.3,0.9469]
[1749681446040,9.69914476,2759.7,2759.3,0.9469]
[1749681446241,9.69914476,2759.7,2759.5,1.243]
[1749681448227,10.9497,2759.5,2758.7,7.502]
[1749681448429,9.69914476,2758.8,2758.7,7.502]
[1749681448647,10.49674476,2758.8,2758.7,1.243]
[1749681449335,0.7976,2758.8,2758.7,1.243]
[1749681450622,7.05962887,2758.9,2758.7,1.243]
[1749681450847,10.0,2759.5,2758.7,1.243]
[1749681450848,0.8185,2759.5,2758.7,1.243]
[1749681450990,0.1808,2758.8,2758.7,1.243]
[1749681451189,0.1808,2758.8,2758.7,2.0352]
[1749681452001,11.22062887,2759.8,2758.7,2.0352]
[1749681452328,11.22062887,2759.8,2758.9,2.16122826]
[1749681452329,0.1808,2759.1,2758.9,2.16122826]
[1749681452747,7.05962887,2759.8,2758.9,2.16122826]
[1749681452953,7.05962887,2759.8,2759.0,2.37735109]
[1749681452954,0.1808,2759.4,2759.0,2.37735109]
[1749681453151,7.05962887,2760.1,2759.2,0.811]
[1749681453331,0.1808,2759.5,2759.4,2.16122826]
[1749681453532,0.1808,2759.5,2759.2,0.811]
[1749681453951,0.1808,2759.5,2759.4,2.16371458]
[1749681454146,0.1808,2759.5,2759.4,2.46118604]
[1749681455122,0.1808,2759.5,2759.4,2.16371458]
[1749681455437,0.1808,2759.5,2759.4,1.243]
[1749681456252,7.24042887,2759.5,2759.3,1.243]
[1749681456566,7.05962887,2759.5,2759.3,1.243]
[1749681457660,7.05962887,2759.5,2758.6,4.9881]
[1749681457661,0.55,2759.2,2758.7,1.243]
[1749681457820,7.24042887,2758.7,2758.3,3.40671458]
[1749681458221,7.24042887,2758.7,2758.3,1.243]
[1749681458222,7.05962887,2758.7,2758.3,1.243]
[1749681458846,0.8032,2758.9,2758.3,1.243]
[1749681459233,0.8032,2758.9,2758.1,2.16371458]
[1749681459550,0.8032,2758.9,2758.2,1.243]
[1749681459927,7.05962887,2758.7,2758.2,1.243]
[1749681461679,0.1808,2758.2,2757.9,0.8105]
[1749681461956,0.1808,2758.2,2758.0,1.244]
[1749681463358,0.1808,2758.2,2758.0,2.08162146]
[1749681464725,10.8032,2758.9,2757.9,1.244]
[1749681464726,0.1808,2758.0,2757.9,1.244]
[1749681467658,14.42786417,2758.9,2757.9,1.244]
[1749681467659,7.86282887,2758.9,2757.9,1.244]
[1749681467861,0.1808,2758.0,2757.9,1.244]
[1749681468268,7.24042887,2758.0,2757.9,1.244]
[1749681468468,0.1808,2758.0,2757.9,1.244]
[1749681468771,0.1808,2758.0,2757.9,2.06]
[1749681468978,0.1808,2758.5,2758.0,10.0]
[1749681469264,0.1808,2758.5,2758.1,2.15696094]
[1749681469495,0.1808,2758.5,2758.2,4.154]
[1749681469880,10.0,2759.2,2758.1,2.33776094]
[1749681469881,10.68453569,2758.7,2758.1,2.15696094]
[1749681470051,10.68453569,2758.7,2757.9,2.65387146]
[1749681470052,0.1808,2758.1,2757.9,1.235]
[1749681470364,7.85282887,2758.0,2757.9,1.235]
[1749681470535,3.62601059,2757.9,2757.3,6.257]
[1749681470734,7.05962887,2757.7,2757.3,6.257]
[1749681471244,17.85282887,2758.0,2757.3,6.257]
[1749681471439,22.00682887,2758.0,2757.3,6.257]
[1749681471645,7.05962887,2757.7,2757.3,6.257]
[1749681471844,0.1808,2757.3,2756.6,3.39196094]
[1749681472083,0.1808,2757.1,2756.6,1.235]
[1749681472292,7.05962887,2757.4,2756.6,1.235]
[1749681472950,0.1808,2756.8,2756.6,1.235]
[1749681473153,0.1808,2756.8,2756.6,5.388]
[1749681473333,10.8137,2757.6,2756.6,5.388]
[1749681473334,0.1808,2757.0,2756.6,5.388]
[1749681475979,4.154,2757.7,2756.7,10.0]
[1749681476292,0.1808,2757.1,2756.7,10.0]
[1749681476456,0.1808,2757.1,2756.7,11.55688]
[1749681477402,9.71971813,2757.1,2756.8,1.235]
[1749681478269,9.71971813,2757.1,2756.6,1.235]
[1749681478577,9.71971813,2757.1,2755.9,6.26]
[1749681478578,0.1808,2756.4,2755.9,6.26]
[1749681478751,9.90051813,2756.4,2756.0,1.235]
[1749681478958,9.71971813,2756.4,2756.0,1.235]
[1749681479506,7.07111509,2756.4,2756.0,1.235]
[1749681480285,0.7866,2756.5,2756.0,1.235]
[1749681480793,7.84381509,2757.5,2756.1,0.7545]
[1749681480991,0.1808,2756.5,2756.2,4.151]
[1749681481297,0.1808,2756.9,2756.4,0.1808]
[1749681481465,0.1808,2756.9,2756.5,5.386]
[1749681481787,0.1808,2756.9,2756.7,0.7587]
[1749681482095,0.7727,2757.5,2756.7,0.7587]
[1749681482392,0.1808,2757.1,2756.7,0.7587]
[1749681483059,0.7727,2757.5,2756.7,0.7587]
[1749681483259,0.1808,2757.0,2756.7,0.7587]
[1749681483572,0.1808,2757.0,2756.8,1.131538]
[1749681484050,0.1808,2757.0,2756.9,1.235]
[1749681484255,0.1808,2757.0,2756.7,0.7587]
[1749681484464,0.1808,2757.0,2756.8,1.235]
[1749681484791,0.1808,2756.8,2756.7,1.235]
[1749681484988,7.84381509,2757.5,2756.7,1.235]
[1749681485386,7.07111509,2757.2,2756.7,1.235]
[1749681485966,7.84381509,2757.5,2756.7,1.235]
[1749681486393,0.1808,2756.9,2756.7,1.235]
[1749681486815,0.1808,2756.9,2756.4,0.7599]
[1749681487107,7.07111509,2757.2,2756.8,1.235]
[1749681488564,7.84381509,2757.5,2756.8,1.235]
[1749681489035,0.1808,2756.9,2756.8,1.235]
[1749681490326,0.1808,2756.9,2756.1,0.8256]
[1749681490532,7.07111509,2757.2,2756.1,0.8256]
[1749681490533,0.1808,2756.5,2756.1,0.8256]
[1749681490736,0.1808,2756.5,2756.2,1.235]
[1749681491048,0.1808,2756.5,2756.3,0.20606]
[1749681492322,7.07111509,2756.9,2756.1,0.8256]
[1749681492501,7.07111509,2756.9,2756.2,1.235]
[1749681492502,0.1808,2756.3,2756.2,1.235]
[1749681492727,7.07111509,2756.5,2756.2,1.235]
[1749681493006,7.88561509,2756.5,2756.2,1.235]
[1749681493657,0.8145,2756.5,2756.2,1.235]
[1749681493820,7.07111509,2756.4,2755.9,6.26]
[1749681495319,4.9605,2756.5,2755.9,6.26]
[1749681495320,0.8145,2756.5,2755.9,6.26]
[1749681496246,10.0,2756.8,2756.0,0.7807]
[1749681496247,0.1808,2756.2,2756.0,0.7807]
[1749681497200,7.07111509,2756.7,2756.1,1.236]
[1749681497537,10.0,2756.9,2755.9,6.26]
[1749681497538,7.07111509,2756.4,2755.9,6.26]
[1749681497841,0.1808,2756.0,2755.9,6.26]
[1749681499510,0.9594,2756.0,2755.9,6.26]
[1749681502166,0.9594,2756.0,2755.3,1.228]
[1749681502167,10.9594,2756.0,2755.3,1.228]
[1749681502299,0.7786,2756.0,2755.3,1.228]
[1749681502499,0.1808,2755.5,2755.4,0.7705]
[1749681502747,0.1808,2755.5,2755.4,0.97035]
[1749681502945,0.1808,2755.5,2755.4,5.11335]
[1749681504563,0.8058,2756.9,2755.6,0.7891]
[1749681504705,0.1808,2756.3,2755.8,0.1808]
[1749681504905,0.1808,2756.3,2755.9,4.142]
[1749681505106,0.1808,2756.3,2756.0,0.43228]
[1749681505875,0.1808,2756.3,2756.1,0.7891]
[1749681506079,0.1808,2756.3,2756.2,1.228]
[1749681507389,9.72910458,2757.0,2756.2,1.228]
[1749681507688,0.1808,2756.5,2756.3,4.141]
[1749681507847,0.1808,2756.5,2756.4,0.5369]
[1749681508882,0.1808,2756.5,2756.1,0.7891]
[1749681509066,0.1808,2756.5,2756.0,0.43228]
[1749681509067,9.72910458,2756.4,2756.2,1.228]
[1749681510947,0.1808,2756.2,2756.0,1.228]
[1749681511137,9.72910458,2756.4,2756.0,1.228]
[1749681511536,9.72910458,2756.4,2755.7,0.7512]
[1749681511738,9.72910458,2756.4,2755.8,1.228]
[1749681513649,9.72910458,2756.1,2755.8,1.228]
[1749681514773,0.1808,2755.8,2755.6,1.228]
[1749681514933,9.72910458,2756.4,2755.6,1.228]
[1749681514934,13.86710458,2756.4,2755.6,1.228]
[1749681515139,0.1808,2755.7,2755.6,1.228]
[1749681515587,0.1808,2755.7,2755.2,3.06042973]
[1749681515799,0.1808,2755.7,2754.4,9.65401862]
[1749681515800,9.72910458,2755.8,2755.4,1.228]
[1749681516498,0.1808,2755.4,2754.8,10.7501]
[1749681516791,9.72910458,2755.5,2755.2,1.228]
[1749681517294,9.72910458,2755.8,2755.2,1.228]
[1749681517590,9.72910458,2755.7,2755.2,1.228]
[1749681517803,9.72910458,2755.4,2755.2,1.228]
[1749681518400,0.1808,2755.2,2754.5,0.8322]
[1749681518549,0.1808,2754.8,2754.6,1.228]
[1749681518748,9.72910458,2755.1,2754.7,1.228]
[1749681519857,0.8031,2755.3,2754.5,0.8322]
[1749681519858,0.1808,2754.7,2754.5,0.8322]
[1749681520066,0.1808,2754.7,2753.4,4.98401862]
[1749681520067,0.1808,2754.5,2753.9,0.8322]
[1749681520295,0.1808,2754.2,2754.0,1.228]
[1749681520460,10.53220458,2754.7,2754.0,1.228]
[1749681520461,0.8031,2754.7,2754.0,1.228]
[1749681520660,10.53220458,2755.0,2754.1,0.20602]
[1749681520862,0.1808,2754.3,2754.2,4.137]
[1749681521074,9.72910458,2754.4,2754.1,0.20602]
[1749681521384,9.72910458,2754.4,2753.1,7.0982]
[1749681521385,9.72910458,2754.2,2753.1,7.0982]
[1749681521617,0.8031,2754.3,2753.2,10.0]
[1749681521618,9.72910458,2753.6,2753.2,10.0]
[1749681521773,9.72910458,2754.0,2753.2,11.70982]
[1749681522083,0.1808,2754.5,2753.3,0.8322]
[1749681522084,4.49261541,2754.5,2753.3,0.8322]
[1749681522271,9.72910458,2754.3,2753.4,4.136]
[1749681522474,9.72910458,2754.3,2753.3,0.8322]
[1749681522654,9.72910458,2754.3,2753.4,1.254202]
[1749681522856,9.72910458,2754.3,2753.5,5.364]
[1749681523055,4.136,2754.5,2753.6,10.8322]
[1749681523474,10.53220458,2754.6,2753.6,10.8322]
[1749681523874,10.53220458,2754.6,2753.6,0.8322]
[1749681524219,9.72910458,2754.0,2753.6,0.8322]
[1749681524708,0.7823,2754.2,2753.7,1.228]
[1749681524901,0.36695682,2754.6,2753.7,1.228]
[1749681524902,4.136,2754.4,2753.7,1.228]
[1749681525686,13.86510458,2754.4,2753.7,1.228]
[1749681526713,9.72910458,2754.1,2753.3,0.8322]
[1749681526861,9.72910458,2754.1,2753.8,1.228]
[1749681527380,13.86510458,2754.4,2753.8,1.228]
[1749681528132,9.72910458,2754.4,2753.9,0.8103]
[1749681529628,9.72910458,2754.4,2753.1,6.266]
[1749681529629,9.72910458,2754.1,2753.3,1.228]
[1749681529848,9.72910458,2753.8,2753.3,1.228]
[1749681530209,13.86310458,2754.1,2753.3,1.228]
[1749681530738,9.72910458,2754.1,2753.3,1.228]
[1749681531227,0.1808,2753.6,2753.3,1.228]
[1749681531391,0.1808,2753.6,2753.3,6.20959]
[1749681531591,0.1808,2753.6,2753.2,0.8103]
[1749681531790,14.134,2754.3,2753.3,1.22]
[1749681531791,9.72910458,2753.8,2753.3,1.22]
[1749681531987,9.72910458,2753.5,2753.3,1.22]
[1749681532194,9.72910458,2753.5,2752.5,1.22]
[1749681532195,0.1816,2753.3,2752.5,1.22]
[1749681532514,0.1816,2752.7,2752.6,1.22]
[1749681534035,0.7982,2753.4,2752.6,1.22]
[1749681534205,0.1816,2752.9,2752.6,1.22]
[1749681535052,0.7982,2753.4,2752.6,1.22]
[1749681535233,0.1816,2752.7,2752.3,0.8103]
[1749681535432,0.1816,2752.7,2752.5,4.133]
[1749681536138,0.1816,2752.7,2752.6,1.22]
[1749681537244,0.1816,2752.7,2752.5,1.22]
[1749681537422,9.72910458,2753.0,2752.5,1.22]
[1749681537619,9.72910458,2752.7,2752.5,1.22]
[1749681538543,9.72910458,2752.9,2752.5,1.22]
[1749681538945,0.8298,2752.8,2752.5,1.22]
[1749681539154,4.132,2753.2,2751.8,0.1816]
[1749681539155,1.3798,2752.5,2751.8,0.1816]
[1749681539341,1.3798,2752.5,2750.9,2.87962973]
[1749681539342,0.8298,2752.2,2750.9,0.8023]
[1749681539517,5.32932533,2752.2,2750.9,0.8023]
[1749681539842,10.0,2752.8,2751.2,0.8023]
[1749681539843,19.72910458,2752.7,2751.2,0.8023]
[1749681540043,0.8298,2752.5,2751.4,0.8023]
[1749681540418,4.131,2752.6,2751.4,10.0]
[1749681540624,0.8298,2752.9,2751.6,10.0]
[1749681540822,0.8298,2752.9,2751.7,0.8023]
[1749681541910,7.08991071,2753.0,2751.7,0.8023]